fUST/lending_fUST_20250921
["ID","MTS","AMOUNT","RATE_DAILY","PERIOD"]
[386562882,1758395321761,-212.68079222,0.00020588,10]
[386562883,1758395325483,-28.78920778,0.00020588,10]
[386562884,1758395325510,-260.17604369,0.00020594,2]
[386562885,1758395325535,-118.58477227,0.00020594,2]
[386562886,1758395327612,-161.22329088,0.00020586,10]
[386562887,1758395330655,150.0,0.00019226,2]
[386562888,1758395331063,150.0,0.00020142,2]
[386562889,1758395331202,-312.83258736,0.00020592,3]
[386562890,1758395334960,-300.74840463,0.00020594,2]
[386562891,1758395339754,-174.36,0.00020588,10]
[386562892,1758395339782,-80.6668231,0.00020594,2]
[386562893,1758395339808,-21.537263,0.00020594,2]
[386562894,1758395342346,-281.89842794,0.00020594,2]
[386562895,1758395345892,-167.58243969,0.00020593,2]
[386562896,1758395347104,2071.18890358,0.000199,2]
[386562897,1758395348555,-154.59375582,0.00020586,10]
[386562898,1758395353251,-280.59527709,0.00020586,10]
[386562899,1758395354729,-209.54928353,0.00020586,10]
[386562900,1758395396744,150.0,0.00019212,2]
[386562901,1758395397170,150.0,0.00020127,2]
[386562922,1758395432593,-227.08,0.00020589,10]
[386562923,1758395432606,-724.28,0.00020591,3]
[386562924,1758395432618,-93.23729995,0.00020591,3]
[386562926,1758395432633,-268.90270005,0.00020591,3]
[386562928,1758395432645,-181.07,0.00020591,3]
[386562931,1758395432657,-167.44808106,0.00020592,2]
[386562933,1758395432669,-2792.07228641,0.00020592,2]
[386562935,1758395432681,-300.0,0.00020593,2]
[386562937,1758395432694,-1200.0,0.00020593,2]
[386562940,1758395432706,-160.0,0.00020594,2]
[386562942,1758395432717,-196.56430906,0.00020594,2]
[386562944,1758395432728,-500.0,0.00020594,2]
[386562946,1758395432740,-500.0,0.00020594,2]
[386562948,1758395432751,-500.0,0.00020594,2]
[386562951,1758395432763,-480.0,0.00020594,2]
[386562953,1758395432774,-480.0,0.00020594,2]
[386562955,1758395432787,-480.0,0.00020594,2]
[386562957,1758395432799,-1073.57,0.00020594,2]
[386562960,1758395432811,-245.61539759,0.00020594,2]
[386562962,1758395432822,-297.35135857,0.00020594,2]
[386562964,1758395432833,-500.0,0.00020595,2]
[386562966,1758395432843,-480.0,0.00020595,2]
[386562968,1758395432855,-480.0,0.00020595,2]
[386562970,1758395432865,-480.0,0.00020595,2]
[386562973,1758395432877,-792.5,0.00020595,2]
[386562975,1758395432889,-480.0,0.00020595,2]
[386562977,1758395432901,-480.0,0.00020595,2]
[386562979,1758395432912,-480.0,0.00020595,2]
[386562982,1758395432924,-480.7544524,0.00020595,2]
[386562984,1758395432937,-483.2219411,0.00020595,2]
[386562987,1758395432949,-480.0,0.00020595,2]
[386562989,1758395432963,-490.13302206,0.00020595,2]
[386562991,1758395432975,-480.0,0.00020595,2]
[386562993,1758395432985,-480.0,0.00020595,2]
[386562995,1758395432995,-180.78574367,0.00020595,2]
[386562997,1758395433005,-480.0,0.00020595,2]
[386563000,1758395433016,-480.0,0.00020595,2]
[386563002,1758395433028,-480.0,0.00020595,2]
[386563004,1758395433041,-482.56660982,0.00020595,2]
[386563007,1758395433053,-480.0,0.00020595,2]
[386563009,1758395433065,-646.98,0.00020595,2]
[386563011,1758395433075,-480.0,0.00020595,2]
[386563013,1758395433086,-480.0,0.00020595,2]
[386563015,1758395433098,-480.0,0.00020595,2]
[386563018,1758395433109,-480.0,0.00020595,2]
[386563020,1758395433121,-443.96247478,0.00020595,2]
[386563022,1758395433132,-480.0,0.00020595,2]
[386563024,1758395433142,-432.77562155,0.00020595,2]
[386563026,1758395433154,-480.0,0.00020595,2]
[386563028,1758395433165,-481.65792317,0.00020595,2]
[386563030,1758395433177,-480.0,0.00020595,2]
[386563032,1758395433188,-480.0,0.00020595,2]
[386563035,1758395433201,-480.0,0.00020595,2]
[386563037,1758395433211,-480.0,0.00020595,2]
[386563039,1758395433222,-45.21819577,0.00020595,2]
[386563453,1758395438496,-434.78180423,0.00020595,2]
[386563454,1758395438508,-480.0,0.00020595,2]
[386563455,1758395438519,-163.06712357,0.00020595,2]
[386563456,1758395438533,-316.93287643,0.00020595,2]
[386563457,1758395438543,-480.0,0.00020595,2]
[386563458,1758395438554,-480.0,0.00020595,2]
[386563459,1758395438565,-480.0,0.00020595,2]
[386563460,1758395438576,-221.69676372,0.00020595,2]
[386563461,1758395438602,-258.30323628,0.00020595,2]
[386563462,1758395438613,-100.89303592,0.00020595,2]
[386563487,1758395440491,-379.10696408,0.00020595,2]
[386563489,1758395440501,-480.0,0.00020595,2]
[386563490,1758395440510,-480.0,0.00020595,2]
[386563491,1758395440519,-485.91945091,0.00020595,2]
[386563492,1758395440528,-480.0,0.00020595,2]
[386563493,1758395440537,-171.47703213,0.00020595,2]
[386563495,1758395440546,-480.0,0.00020595,2]
[386563496,1758395440556,-482.50733348,0.00020595,2]
[386563497,1758395440565,-480.0,0.00020595,2]
[386563498,1758395440574,-480.0,0.00020595,2]
[386563499,1758395440583,-480.0,0.00020595,2]
[386563500,1758395440592,-480.0,0.00020595,2]
[386563501,1758395440601,-480.0,0.00020595,2]
[386563502,1758395440610,-480.0,0.00020595,2]
[386563503,1758395440620,-1117.83,0.00020595,2]
[386563504,1758395440629,-480.0,0.00020595,2]
[386563505,1758395440638,-480.0,0.00020595,2]
[386563506,1758395440647,-480.0,0.00020595,2]
[386563507,1758395440656,-480.0,0.00020595,2]
[386563508,1758395440666,-481.80623496,0.00020595,2]
[386563509,1758395440675,-417.26741725,0.00020595,2]
[386563510,1758395440684,-482.1727177,0.00020595,2]
[386563511,1758395440693,-480.0,0.00020595,2]
[386563512,1758395440702,-308.70032998,0.00020595,2]
[386563514,1758395441551,-0.00438574,0.00020595,2]
[386563547,1758395443520,-171.29528428,0.00020595,2]
[386563549,1758395443530,-480.0,0.00020595,2]
[386563551,1758395443539,-246.70471572,0.00020595,2]
[386563553,1758395443550,-233.29528428,0.00020595,2]
[386563555,1758395443560,-481.3360348,0.00020595,2]
[386563557,1758395443570,-157.1190119,0.00020595,2]
[386563559,1758395443579,-480.0,0.00020595,2]
[386563561,1758395443589,-480.0,0.00020595,2]
[386563563,1758395443598,-480.0,0.00020595,2]
[386563565,1758395443607,-480.0,0.00020595,2]
[386563567,1758395443617,-480.0,0.00020595,2]
[386563570,1758395443626,-477.59203125,0.00020595,2]
[386563572,1758395443636,-480.0,0.00020595,2]
[386563575,1758395443645,-480.0,0.00020595,2]
[386563577,1758395443654,-480.0,0.00020595,2]
[386563579,1758395443663,-480.0,0.00020595,2]
[386563581,1758395443672,-1228.03,0.00020595,2]
[386563583,1758395443681,-481.23899459,0.00020595,2]
[386563584,1758395443690,-480.0,0.00020595,2]
[386563585,1758395443699,-480.0,0.00020595,2]
[386563586,1758395443709,-480.0,0.00020595,2]
[386563587,1758395443718,-480.0,0.00020595,2]
[386563588,1758395443728,-480.0,0.00020595,2]
[386563589,1758395443738,-480.0,0.00020595,2]
[386563590,1758395443747,-480.0,0.00020595,2]
[386563591,1758395443756,-480.0,0.00020595,2]
[386563592,1758395443766,-480.0,0.00020595,2]
[386563593,1758395443776,-480.0,0.00020595,2]
[386563594,1758395443785,-507.56372822,0.00020595,2]
[386563595,1758395443795,-552.35654303,0.00020595,2]
[386563596,1758395443805,-480.0,0.00020595,2]
[386563597,1758395443815,-480.0,0.00020595,2]
[386563598,1758395443825,-480.0,0.00020595,2]
[386563599,1758395443835,-2109.27,0.00020595,2]
[386563600,1758395443846,-480.0,0.00020595,2]
[386563601,1758395443855,-480.0,0.00020595,2]
[386563602,1758395443865,-480.0,0.00020595,2]
[386563603,1758395443875,-480.0,0.00020595,2]
[386563604,1758395443884,-480.0,0.00020595,2]
[386563605,1758395443893,-480.0,0.00020595,2]
[386563606,1758395443903,-572.22352257,0.00020595,2]
[386563607,1758395443913,-480.0,0.00020596,2]
[386563608,1758395443922,-480.0,0.00020596,2]
[386563609,1758395443932,-786.55,0.00020596,2]
[386563610,1758395443942,-480.0,0.00020596,2]
[386563611,1758395443952,-480.0,0.00020596,2]
[386563612,1758395443962,-480.0,0.00020596,2]
[386563613,1758395443971,-480.0,0.00020596,2]
[386563614,1758395443980,-483.34748842,0.00020596,2]
[386563615,1758395443991,-548.23,0.00020596,2]
[386563616,1758395444002,-480.0,0.00020596,2]
[386563617,1758395444014,-480.0,0.00020596,2]
[386563618,1758395444024,-480.0,0.00020596,2]
[386563619,1758395444036,-480.0,0.00020596,2]
[386563620,1758395444046,-480.0,0.00020596,2]
[386563621,1758395444055,-480.0,0.00020596,2]
[386563622,1758395444065,-480.0,0.00020596,2]
[386563623,1758395444075,-480.0,0.00020596,2]
[386563624,1758395444084,-480.0,0.00020596,2]
[386563625,1758395444093,-261.8912586,0.00020596,2]
[386563682,1758395446566,-480.0,0.00020595,2]
[386563684,1758395446575,-480.0,0.00020595,2]
[386563686,1758395446585,-218.1087414,0.00020596,2]
[386563688,1758395446596,-480.0,0.00020597,2]
[386563690,1758395446605,-480.0,0.00020597,2]
[386563692,1758395446615,-15376.2906946,0.00020598,2]
[386563694,1758395446624,-493.58209321,0.00020598,2]
[386563696,1758395446633,-480.0,0.00020598,2]
[386563698,1758395446643,-386.5074979,0.00020598,2]
[386563701,1758395446654,-93.4925021,0.00020598,2]
[386563703,1758395446664,-480.0,0.00020598,2]
[386563705,1758395446673,-386.5074979,0.00020598,2]
[386563967,1758395455586,254.62068506,0.00020498,2]
[386563968,1758395461972,150.0,0.00019222,2]
[386563969,1758395537191,236.17931494,0.000199,2]
[386563970,1758395537217,916.69198441,0.000199,2]
[386563971,1758395537242,849.27797413,0.000199,2]
[386563972,1758395539540,4168.87873962,0.00020498,2]
[386563973,1758395539564,10000.01,0.00020498,2]
[386563974,1758395539587,10000.01,0.00020498,2]
[386563975,1758395539612,10000.01,0.00020498,2]
[386563976,1758395539646,10000.01,0.00020498,2]
[386563977,1758395539675,10000.01,0.00020498,2]
[386563978,1758395539700,10000.01,0.00020498,2]
[386563979,1758395539725,10000.01,0.00020498,2]
[386563980,1758395539749,10000.01,0.00020498,2]
[386563981,1758395539774,10000.01,0.00020498,2]
[386563982,1758395539804,7912.98464989,0.00020498,2]
[386563984,1758395718155,1935.41096419,0.000199,2]
[386563985,1758395738750,151.0,0.0002,2]
[386563986,1758395739071,151.0,0.000189,2]
[386563987,1758395739353,151.0,0.000177,2]
[386563988,1758395739629,151.0,0.000166,2]
[386563989,1758395739972,151.0,0.000155,2]
[386563990,1758395740246,151.0,0.000144,2]
[386563991,1758395740568,151.0,0.000132,2]
[386563992,1758395740923,151.0,0.000121,2]
[386563993,1758395795544,6856.59903581,0.00019595,2]
[386563994,1758395795567,1955.38310629,0.00019595,2]
[386563996,1758395831747,157.30793387,0.00020498,2]
[386563997,1758395845129,7887.31895984,0.00020498,2]
[386563998,1758395845155,10000.01,0.00020498,2]
[386563999,1758395845177,10000.01,0.00020498,2]
[386564000,1758395845200,10000.01,0.00020498,2]
[386564001,1758395845224,10000.01,0.00020498,2]
[386564002,1758395845248,10000.01,0.00020498,2]
[386564003,1758395845272,10000.01,0.00020498,2]
[386564004,1758395845296,10000.01,0.00020498,2]
[386564005,1758395845318,10000.01,0.00020498,2]
[386564006,1758395845341,10000.01,0.00020498,2]
[386564007,1758395845488,73144.31087538,0.00020498,2]
[386564012,1758395899579,1870.89726549,0.000199,2]
[386564015,1758396054869,284.36474264,0.000199,2]
[386564016,1758396080255,1808.53402322,0.000199,2]
[386564017,1758396100636,223.73202791,0.00020492,2]
[386564018,1758396104484,150.0,0.00019217,2]
[386564019,1758396105689,223.7320279,0.00020495,2]
[386564020,1758396110640,223.7320279,0.00020497,2]
[386564021,1758396168415,150.0,0.00019219,2]
[386564022,1758396168987,6935.91515043,0.00020493,2]
[386564023,1758396169012,10000.01,0.00020493,2]
[386564024,1758396169036,10000.01,0.00020493,2]
[386564025,1758396169059,10000.01,0.00020493,2]
[386564026,1758396169082,10000.01,0.00020493,2]
[386564027,1758396169107,10000.01,0.00020493,2]
[386564028,1758396169130,10000.01,0.00020493,2]
[386564029,1758396169153,10000.01,0.00020493,2]
[386564030,1758396169177,10000.01,0.00020493,2]
[386564031,1758396169200,10000.01,0.00020493,2]
[386564032,1758396169231,210131.02204856,0.00020493,2]
[386564033,1758396170098,-194.88313143,0.00020493,2]
[386564034,1758396174438,-301.11487685,0.00020493,2]
[386564035,1758396176641,-200.32099994,0.00020493,2]
[386564036,1758396178763,-152.0,0.00020493,2]
[386564037,1758396182009,-251.58720538,0.00020493,2]
[386564038,1758396187037,-206.92512575,0.00020492,2]
[386564039,1758396190529,-93.07487425,0.00020492,2]
[386564040,1758396190989,-1197.15,0.00020493,2]
[386564041,1758396193651,-259.71316319,0.00020493,2]
[386564042,1758396197969,-173.02941,0.00020493,2]
[386564043,1758396202408,-321.41609566,0.00020493,2]
[386564044,1758396207416,-427.49133115,0.00020493,2]
[386564045,1758396210137,-285.09402865,0.00020493,2]
[386564046,1758396213534,-353.14070466,0.00020493,2]
[386564047,1758396216553,-302.64144607,0.00020493,2]
[386564048,1758396217938,-165.93369979,0.00020493,2]
[386564049,1758396221121,-172.80948069,0.00020493,2]
[386564050,1758396224717,-165.85717935,0.00020493,2]
[386564051,1758396226691,-192.09523517,0.00020395,2]
[386564052,1758396230671,-2.58949649,0.00020395,2]
[386564053,1758396231010,-194.68473164,0.00020445,2]
[386564054,1758396232317,150.0,0.00019236,2]
[386564055,1758396232950,-150.0,0.00020152,2]
[386564056,1758396232974,-146.68640733,0.00020493,2]
[386564057,1758396235552,-278.38218165,0.00020493,2]
[386564058,1758396241643,-9294.82140221,0.00020493,2]
[386564059,1758396248894,-994.67960962,0.00020393,2]
[386564060,1758396248923,-300.0,0.00020492,2]
[386564061,1758396248970,-7410.65078076,0.00020493,2]
[386564062,1758396249010,-10000.01,0.00020493,2]
[386564063,1758396249166,-10000.01,0.00020493,2]
[386564064,1758396249311,-10000.01,0.00020493,2]
[386564065,1758396249419,-10000.01,0.00020493,2]
[386564066,1758396262462,2028.92872644,0.000199,2]
[386564067,1758396314407,150.0,0.0001922,2]
[386564068,1758396314793,231.88,0.00020135,2]
[386564069,1758396320764,-243.20791566,0.00020395,2]
[386564070,1758396320794,-878.20927625,0.00020493,2]
[386564071,1758396320823,-157.30793387,0.00020495,2]
[386564072,1758396320852,-194.68473164,0.00020495,2]
[386564073,1758396320882,-500.0,0.000205,2]
[386564074,1758396320910,-500.0,0.000205,2]
[386564075,1758396320941,-1200.0,0.000205,2]
[386564076,1758396320968,-500.0,0.000205,2]
[386564077,1758396330763,-500.0,0.000205,2]
[386564078,1758396330792,-3149.29457752,0.00020501,2]
[386564079,1758396330850,-2006.73611332,0.00020501,2]
[386564080,1758396336768,-189.65192494,0.00020467,2]
[386564081,1758396337970,160.0,8e-07,2]
[386564082,1758396340817,-268.10469272,0.00020467,2]
[386564083,1758396341214,2204.76950497,0.00019579,2]
[386564084,1758396344697,343.37618289,0.00020401,2]
[386564085,1758396353274,460.0,0.000199,2]
[386564086,1758396362252,300.0,0.0002049,2]
[386564087,1758396379347,-186.482494,0.00020491,2]
[386564089,1758396393453,273.14754686,0.0002049,2]
[386564090,1758396393481,218.37992932,0.0002049,2]
[386564091,1758396394305,500.0,0.0002049,2]
[386564092,1758396394332,500.0,0.0002049,2]
[386564093,1758396394364,500.0,0.0002049,2]
[386564094,1758396394393,500.0,0.0002049,2]
[386564095,1758396394423,500.0,0.0002049,2]
[386564096,1758396394449,308.88777255,0.0002049,2]
[386564097,1758396394480,500.0,0.0002049,2]
[386564098,1758396394517,500.0,0.0002049,2]
[386564099,1758396394553,325.72701528,0.0002049,2]
[386564100,1758396394581,500.0,0.0002049,2]
[386564101,1758396394615,500.0,0.0002049,2]
[386564102,1758396394648,185.40696955,0.0002049,2]
[386564103,1758396394684,344.10569314,0.0002049,2]
[386564104,1758396394710,197.00568883,0.0002049,2]
[386564105,1758396395009,150.0,0.00019223,2]
[386564106,1758396395411,226.98,0.00020138,2]
[386564107,1758396396046,-10000.01,0.00020491,2]
[386564108,1758396404142,-10000.01,0.00020491,2]
[386564109,1758396404316,-10000.01,0.00020491,2]
[386564110,1758396404445,-10000.01,0.00020491,2]
[386564111,1758396404739,-10000.01,0.00020491,2]
[386564112,1758396404896,-10000.01,0.00020491,2]
[386564113,1758396410882,-181.30350102,0.00020491,2]
[386564114,1758396410904,-9637.40299796,0.00020491,2]
[386564115,1758396441096,-500.0,0.0002049,2]
[386564116,1758396441119,-482.07941926,0.0002049,2]
[386564117,1758396448104,2840.91892196,0.000199,2]
[386564118,1758396460949,-215.91014396,0.0002039,2]
[386564119,1758396460981,-36.71484414,0.0002049,2]
[386564120,1758396461016,-500.0,0.0002049,2]
[386564121,1758396461121,-5653.84110184,0.000205,2]
[386564122,1758396461246,-10000.01,0.000205,2]
[386564123,1758396461488,-10000.01,0.000205,2]
[386564124,1758396461637,-10000.01,0.000205,2]
[386564125,1758396461793,-10000.01,0.000205,2]
[386564127,1758396471934,8000.04903581,0.00018,2]
[386564128,1758396480926,-2172.8576301,0.000205,2]
[386564129,1758396480954,-500.0,0.000205,2]
[386564130,1758396486309,199.05,0.00019224,2]
[386564131,1758396486700,398.09,0.0002014,2]
[386564132,1758396490992,-500.0,0.000205,2]
[386564133,1758396491028,-300.0,0.0002051,2]
[386564134,1758396491127,-5054.25570399,0.00020511,2]
[386564135,1758396494637,185.156679,0.00019584,2]
[386564138,1758396559102,-480.0,0.0002049,2]
[386564139,1758396559125,-480.0,0.0002049,2]
[386564140,1758396559145,-480.0,0.0002049,2]
[386564141,1758396559167,-217.2583892,0.00020493,2]
[386564142,1758396559188,-520.47807944,0.00020494,2]
[386564143,1758396559209,-500.0,0.000205,2]
[386564144,1758396559229,-119.48733136,0.000205,2]
[386564145,1758396565244,-480.0,0.0002049,2]
[386564146,1758396565270,-129.32690265,0.000205,2]
[386564147,1758396565291,-4325.40271325,0.00020511,2]
[386564148,1758396566936,233.21,0.00019225,2]
[386564149,1758396567345,466.43,0.0002014,2]
[386564150,1758396568545,120.93285934,0.00019178,2]
[386564151,1758396568566,945.69603556,0.00019178,2]
[386564152,1758396568586,3933.3711051,0.00019178,2]
[386564153,1758396568874,5000.0,0.00019178,2]
[386564154,1758396569015,1066.6388949,0.00019178,2]
[386564155,1758396569037,3933.3611051,0.00019178,2]
[386564156,1758396571709,1431.84797685,0.00019575,2]
[386564157,1758396574523,3218.43628996,0.00019575,2]
[386564158,1758396606334,-1224.38,0.0002049,2]
[386564159,1758396606371,-3064.2653466,0.00020495,2]
[386564160,1758396606407,-300.0,0.00020572,2]
[386564161,1758396606464,-300.0,0.00020572,2]
[386564162,1758396616307,-300.0,0.00020572,2]
[386564163,1758396616337,-300.0,0.00020572,2]
[386564164,1758396616366,-300.0,0.00020572,2]
[386564165,1758396616395,-1200.0,0.00020572,2]
[386564166,1758396616425,-500.0,0.00020573,2]
[386564167,1758396616454,-483.93814528,0.00020573,2]
[386564168,1758396616483,-500.0,0.00020573,2]
[386564169,1758396616512,-500.0,0.00020573,2]
[386564170,1758396616540,-500.0,0.00020573,2]
[386564171,1758396619847,306.985025,0.00019955,2]
[386564172,1758396620179,324.0472012,0.00019965,2]
[386564173,1758396626240,-480.0,0.0002049,2]
[386564174,1758396629053,3245.50283441,0.000199,2]
[386564219,1758396632768,-9061.02620414,0.00020573,2]
[386564221,1758396632777,-500.0,0.00020573,2]
[386564223,1758396632787,-157.95,0.00020582,10]
[386564225,1758396632796,-15674.22049481,0.00020583,2]
[386564227,1758396632805,-151.0,0.00020583,2]
[386564229,1758396632814,-151.0,0.00020583,2]
[386564231,1758396632823,-151.0,0.00020583,2]
[386564233,1758396632832,-151.0,0.00020583,2]
[386564235,1758396632841,-151.0,0.00020583,2]
[386564237,1758396632850,-151.0,0.00020583,2]
[386564239,1758396632859,-151.0,0.00020583,2]
[386564241,1758396632869,-151.0,0.00020583,2]
[386564243,1758396632879,-151.0,0.00020583,2]
[386564245,1758396632888,-8770.76250936,0.00020583,2]
[386564247,1758396632900,-307.10180012,0.00020583,2]
[386564249,1758396632911,-640.79212053,0.00020583,2]
[386564251,1758396632922,-20682.96363554,0.00020583,2]
[386564253,1758396632932,-759.398,0.00020583,2]
[386564283,1758396636246,-500.0,0.00020582,2]
[386564284,1758396636280,-187.26744106,0.00020582,2]
[386564285,1758396636313,-282.34570911,0.00020582,2]
[386564286,1758396636788,-9572.00134399,0.00020583,2]
[386564290,1758396638778,-9266.98059046,0.00020583,2]
[386564291,1758396638788,-1200.0,0.00020583,2]
[386564292,1758396638797,-480.0,0.00020583,2]
[386564293,1758396638806,-480.0,0.00020583,2]
[386564294,1758396638815,-480.0,0.00020583,2]
[386564295,1758396638825,-480.0,0.00020583,2]
[386564296,1758396638834,-789.76,0.00020583,10]
[386564297,1758396638843,-543.54,0.00020584,3]
[386564298,1758396638852,-271.77,0.00020584,3]
[386564299,1758396638861,-815.35,0.00020584,3]
[386564300,1758396638870,-893.14,0.00020584,3]
[386564301,1758396638879,-152.86595052,0.0002059,2]
[386564302,1758396638888,-191.2032828,0.0002059,2]
[386564303,1758396638897,-480.0,0.00020591,2]
[386564304,1758396638906,-480.0,0.00020591,2]
[386564305,1758396638916,-480.0,0.00020591,2]
[386564306,1758396638925,-480.0,0.00020591,2]
[386564307,1758396638934,-1240.95,0.00020591,2]
[386564308,1758396638943,-480.0,0.00020591,2]
[386564309,1758396638952,-480.0,0.00020591,2]
[386564310,1758396638965,-948.77,0.00020591,2]
[386564311,1758396638975,-1165.74,0.00020591,2]
[386564312,1758396638984,-480.0,0.00020591,2]
[386564313,1758396638993,-1249.23,0.00020591,2]
[386564314,1758396639003,-480.0,0.00020591,2]
[386564315,1758396639013,-480.0,0.00020591,2]
[386564316,1758396639022,-480.0,0.00020591,2]
[386564317,1758396639032,-480.0,0.00020591,2]
[386564318,1758396639042,-689.85,0.00020591,2]
[386564319,1758396639051,-480.0,0.00020591,2]
[386564320,1758396639060,-480.0,0.00020591,2]
[386564321,1758396639068,-480.0,0.00020591,2]
[386564322,1758396639078,-2316.08,0.00020591,2]
[386564323,1758396639087,-480.0,0.00020591,2]
[386564324,1758396639095,-480.0,0.00020591,2]
[386564325,1758396639104,-480.0,0.00020591,2]
[386564326,1758396639114,-160.0,0.00020591,2]
[386564327,1758396639123,-480.68463017,0.00020592,2]
[386564328,1758396639132,-480.0,0.00020592,2]
[386564329,1758396639142,-480.0,0.00020592,2]
[386564330,1758396639151,-480.0,0.00020592,2]
[386564331,1758396639160,-480.0,0.00020592,2]
[386564332,1758396639169,-480.0,0.00020592,2]
[386564333,1758396639179,-480.0,0.00020592,2]
[386564334,1758396639188,-1155.74,0.00020592,2]
[386564335,1758396639197,-1155.74,0.00020592,2]
[386564336,1758396639206,-1155.74,0.00020592,2]
[386564337,1758396639215,-480.0,0.00020592,2]
[386564338,1758396639224,-480.0,0.00020592,2]
[386564339,1758396639233,-697.32,0.00020592,2]
[386564340,1758396639243,-480.0,0.00020592,2]
[386564341,1758396639252,-480.0,0.00020592,2]
[386564342,1758396639261,-193.03,0.00020592,2]
[386564343,1758396639271,-480.0,0.00020592,2]
[386564344,1758396639280,-480.0,0.00020592,2]
[386564345,1758396639290,-480.0,0.00020592,2]
[386564346,1758396639300,-480.0,0.00020592,2]
[386564347,1758396639309,-480.0,0.00020592,2]
[386564348,1758396639320,-480.0,0.00020592,2]
[386564349,1758396639330,-480.0,0.00020592,2]
[386564350,1758396639340,-480.0,0.00020592,2]
[386564351,1758396639350,-1187.76,0.00020592,2]
[386564352,1758396639360,-480.0,0.00020592,2]
[386564353,1758396639369,-480.0,0.00020592,2]
[386564354,1758396639379,-607.51,0.00020592,2]
[386564355,1758396639388,-480.0,0.00020592,2]
[386564356,1758396639398,-480.0,0.00020592,2]
[386564357,1758396639408,-480.0,0.00020592,2]
[386564358,1758396639417,-480.0,0.00020592,2]
[386564359,1758396639430,-480.0,0.00020592,2]
[386564360,1758396639441,-480.0,0.00020592,2]
[386564361,1758396639451,-1337.61,0.00020592,2]
[386564362,1758396639460,-480.0,0.00020592,2]
[386564363,1758396639469,-1131.22,0.00020592,2]
[386564364,1758396639479,-480.0,0.00020592,2]
[386564365,1758396639488,-480.0,0.00020592,2]
[386564366,1758396639497,-480.0,0.00020593,2]
[386564367,1758396639506,-480.0,0.00020593,2]
[386564368,1758396639517,-491.52247574,0.00020593,2]
[386564369,1758396639525,-431.74069649,0.00020593,2]
[386564370,1758396639535,-482.00536893,0.00020593,2]
[386564371,1758396639544,-480.0,0.00020593,2]
[386564372,1758396639554,-484.68285962,0.00020593,2]
[386564373,1758396639563,-454.6320539,0.00020593,2]
[386564374,1758396639572,-480.0,0.00020593,2]
[386564375,1758396639581,-480.0,0.00020593,2]
[386564376,1758396639591,-480.0,0.00020593,2]
[386564377,1758396639601,-452.14900759,0.00020593,2]
[386564378,1758396639613,-480.0,0.00020593,2]
[386564379,1758396639624,-480.0,0.00020593,2]
[386564380,1758396639633,-192.89126168,0.00020593,2]
[386564381,1758396639643,-189.73023821,0.00020593,2]
[386564382,1758396639652,-480.0,0.00020593,2]
[386564383,1758396639661,-480.0,0.00020593,2]
[386564384,1758396639670,-480.0,0.00020593,2]
[386564385,1758396639680,-480.0,0.00020593,2]
[386564386,1758396639688,-480.0,0.00020593,2]
[386564387,1758396639698,-1155.74,0.00020593,2]
[386564388,1758396639706,-1155.74,0.00020593,2]
[386564389,1758396639715,-480.0,0.00020593,2]